Cogmind - Beta 13 @@@ ROGUE MODE // 2024.05.03 @ 10:41:31 Player: Aeon PSR Result: Self-destructed Performance ------------- Evolutions (1) 500 Regions Visited (2) 400 Robots Destroyed (13) 65 Value Destroyed (325) 325 Prototype IDs (2) 40 Alien Tech Used (0) 0 Bonus (0) 0 TOTAL SCORE: 1330 Bonus ------- None Cogmind --------- Core Integrity 280/400 Matter 274/300 Energy 233/250 System Corruption 0% Temperature Cool (0) Movement Rolling (115) Ox1 Location -9/Materials Parts ------- > --- POWER (1) -------- Ion Engine > --- PROPULSION (2) --- Compact Wheel Compact Wheel > --- UTILITY (4) ------ High-capacity Storage Unit Structural Scanner Hacking Suite > --- WEAPON (2) ------- Assault Rifle Heavy Assault Rifle > --- INVENTORY (20) --- Light Ion Engine Medium Matter Pod (21) System Shield Trap Extractor (0/4) Field Recycling Unit (0) Rocket Launcher Mini Grenade Launcher Mining Laser Peak State ------------ > --- POWER ------------ Light Ion Engine > --- PROPULSION ------- Compact Wheel Compact Wheel > --- UTILITY ---------- High-capacity Storage Unit Structural Scanner Medium Armor Plating Hacking Suite > --- WEAPON ----------- Assault Rifle Rocket Launcher > --- INVENTORY -------- Light Ion Engine Medium Matter Pod Trap Extractor Assault Rifle Mining Laser [Rating: 13] Favorites ----------- Power Light Ion Engine Engine Light Ion Engine Propulsion Compact Wheel Wheel Compact Wheel Utility Structural Scanner Device Structural Scanner Storage High-capacity Storage Unit Hackware Hacking Suite Protection Medium Armor Plating Weapon Assault Rifle Ballistic Gun Assault Rifle Launcher Rocket Launcher Special Weapon Mining Laser Build | -11 -10 -9 ------- Run | Yrd Mat Mat Slots Evolved 2 | . . 2 Power . | . . . Propulsion . | . . . Utility 2 | . . 2 Weapon . | . . . Parts Attached 17 | 6 1 10 Power 2 | 1 . 1 Engine 2 | 1 . 1 Core . | . . . Reactor . | . . . Propulsion 3 | 2 . 1 Treads . | . . . Leg . | . . . Wheel 3 | 2 . 1 Hover . | . . . Flight . | . . . Utility 5 | 1 1 3 Device 1 | . 1 . Storage 2 | 1 . 1 Processor . | . . . Hackware 1 | . . 1 Protection 1 | . . 1 Artifact . | . . . Weapon 7 | 2 . 5 Energy Gun . | . . . Energy Cannon . | . . . Ballistic Gun 5 | 2 . 3 Ballistic Cannon . | . . . Launcher 1 | . . 1 Special Weapon 1 | . . 1 Impact Weapon . | . . . Slashing Weapon . | . . . Piercing Weapon . | . . . Special Melee Weapon . | . . . Unidentified Prototypes . | . . . Parts Lost 3 | . . 3 Power . | . . . Propulsion 1 | . . 1 Utility 1 | . . 1 Weapon 1 | . . 1 Highest Loss Streak 2 | . . 2 To Critical Strikes 2 | . . 2 Average Slot Usage (%) 94 | . 99 93 Engine 11 | . 14 11 Wheel 22 | . 28 20 Device 11 | . 13 11 Storage 11 | . 14 11 Hackware 7 | . . 11 Protection 4 | . . 6 Ballistic Gun 19 | . 28 16 Special Weapon 3 | . . 4 Naked Turns . | . . . Heaviest Build 57 | 12 13 57 Greatest Support 32 | 32 32 32 Greatest Overweight (x) 3 | . . 3 Average Overweight (x) . | . . . Largest Inventory Capacity 20 | 8 8 20 Average Capacity 13 | 5 8 16 Most Carried 9 | 4 4 9 Average Carried 4 | 1 2 5 Final Capacity 20 | 8 8 20 Final Carried 8 | 1 4 8 Class Distribution -------------------- 100% | Mutant Dominant Class ---------------- Mutant | -10/Materials Mutant | -9/Materials Resources | -11 -10 -9 ----------- Run | Yrd Mat Mat Matter Collected 532 | 185 11 336 Remotely . | . . . Salvage Created 384 | . 11 373 Parts 30 | . 3 27 Haulers Intercepted . | . . . Recyclers Shooed . | . . . Parts Field Recycled . | . . . Retrieved Matter . | . . . Parts Self-Destructed . | . . . Prevented . | . . . Kills | -11 -10 -9 ------- Run | Yrd Mat Mat Combat Hostiles Destroyed 7 | . . 7 Guns 3 | . . 3 AOE 4 | . . 4 Classes Destroyed 5 | . 1 4 Builder 3 | . . 3 Recycler 1 | . . 1 Operator 2 | . 1 1 Grunt 6 | . . 6 Sentry 1 | . . 1 Best Kill Streak 6 | . 1 6 Combat Bots Only 4 | . . 4 Max Kills in Single Turn 3 | . 1 3 Gunslinging . | . . . Exploded 3 | . . 3 Melee . | . . . Uniques/NPCs Destroyed . | . . . Combat | -11 -10 -9 -------- Run | Yrd Mat Mat Hostile Shots Fired 59 | . 1 58 Missed 19 | . 1 18 Damage Taken 521 | . . 521 Core 120 | . . 120 Absorbed by Shields . | . . . Core Remaining (%) 100 | 100 100 . Volleys Fired 30 | . 2 28 Largest 2 | . 2 2 Hottest 100 | . 40 100 Shots Fired 51 | . 4 47 Gun 46 | . 4 42 Cannon . | . . . Launcher 4 | . . 4 Special 1 | . . 1 Kinetic 46 | . 4 42 Thermal 1 | . . 1 Explosive 4 | . . 4 Electromagnetic . | . . . Robot Hit Streak 9 | . 2 9 Robot Miss Streak 2 | . 1 2 Penetration Max . | . . . Secondary Targets 1 | . . 1 Max Gunslinging Chain 1 | . . 1 Shots Hit Robots 33 | . 3 30 Core Hits 20 | . 2 18 Critical Kills . | . . . Critical Parts Destroyed . | . . . Critical Strikes . | . . . Melee Attacks . | . . . Impact . | . . . Slashing . | . . . Piercing . | . . . Sneak Attacks . | . . . Combat Hostiles . | . . . Follow-up Attacks . | . . . Damage Inflicted 788 | . 39 749 Guns 409 | . 39 370 Cannons . | . . . Explosions 379 | . . 379 Melee . | . . . Ramming . | . . . Kinetic 409 | . 39 370 Thermal . | . . . Explosive 379 | . . 379 Electromagnetic . | . . . Impact . | . . . Slashing . | . . . Piercing . | . . . Highest Corruption . | . . . Average Corruption . | . . . Corruption Purged . | . . . Corruption Blocked . | . . . Overload Shots . | . . . Overflow Damage 29 | . . 29 Projectiles . | . . . Explosions 29 | . . 29 Melee . | . . . Knockbacks . | . . . Impact . | . . . Kinetic . | . . . Secondary . | . . . Self-Inflicted Damage 17 | . . 17 Shots 1 | . . 1 Rammed . | . . . Targets Rammed . | . . . Kicked . | . . . Crushed . | . . . Highest Temperature 17 | . . 17 Average Temperature 4 | . . 4 Received Heat Transfer 252 | . . 252 Siege Activations . | . . . Robots Corrupted . | . . . Combat Hostiles . | . . . Parts Fried . | . . . Impact Corruptions . | . . . Robots Melted . | . . . Combat Hostiles . | . . . Parts Melted . | . . . Heat Transferred . | . . . Parts Sabotaged . | . . . Parts Stolen . | . . . Parts Stripped . | . . . Power Chain Reactions . | . . . Alert | -11 -10 -9 ------- Run | Yrd Mat Mat Peak Influence 202 | . 5 202 Initial 1 | . . 1 Average 46 | . 1 70 Maximum Alert Level 1 | . . 1 Low Security (%) 96 | 100 100 94 Level 1 3 | . . 5 Level 2 . | . . . Level 3 . | . . . Level 4 . | . . . Level 5 . | . . . High Security . | . . . Max Security . | . . . Squads Dispatched 2 | . . 2 Investigation 1 | . . 1 Extermination . | . . . Reinforcement 1 | . . 1 Assault . | . . . Garrison . | . . . Intercept . | . . . Searches Triggered . | . . . Construction Impeded . | . . . Haulers Reinforced . | . . . Active Scanning Responses . | . . . Cargo Convoy Interrupts . | . . . Stealth | -11 -10 -9 --------- Run | Yrd Mat Mat Distress Signals 3 | . . 3 Communications Jammed . | . . . Distress Signals . | . . . Times Spotted 18 | . 3 15 Peak Tracking Total 5 | . 2 5 Tactical Retreats . | . . . Traps | -11 -10 -9 ------- Run | Yrd Mat Mat Traps Triggered 1 | . . 1 Indirectly . | . . . Trap Hack Attempts . | . . . Triggered . | . . . Disarmed . | . . . Reprogrammed . | . . . Reused . | . . . Traps Extracted . | . . . Installed . | . . . Triggered . | . . . Machines | -11 -10 -9 ---------- Run | Yrd Mat Mat Machines Disabled 1 | . . 1 Max in Single Turn 1 | . . 1 Machines Repaired . | . . . Machines Dismantled . | . . . Machines Sabotaged . | . . . Overloaded Fab Kills . | . . . Hacking | -11 -10 -9 --------- Run | Yrd Mat Mat Machines Accessed 3 | . 1 2 Terminals 1 | . 1 . Fabricators . | . . . Repair Stations . | . . . Recycling Units 2 | . . 2 Scanalyzers . | . . . Garrison Access . | . . . Total Hacks 4 | . 1 3 Successful 4 | . 1 3 Failed . | . . . Catastrophic . | . . . Database Lockouts . | . . . Manual . | . . . Terminals 1 | . 1 . Fabricators . | . . . Repair Stations . | . . . Recycling Units 3 | . . 3 Scanalyzers . | . . . Garrison Access . | . . . Terminal Hacks 1 | . 1 . Prototype ID Bank 1 | . 1 . Fabricator Hacks . | . . . Repair Station Hacks . | . . . Recycling Unit Hacks 3 | . . 3 Report Inventory 2 | . . 2 Retrieve Components 1 | . . 1 Scanalyzer . | . . . Garrison Access Hacks . | . . . Unauthorized Hacks . | . . . Terminals . | . . . Fabricators . | . . . Repair Stations . | . . . Recycling Units . | . . . Scanalyzers . | . . . Garrison Access . | . . . Data Cores Recovered 1 | . 1 . Used . | . . . Hacking Detections . | . . . Full Trace Events . | . . . Feedback Events . | . . . Feedback Blocked . | . . . Robot Schematics Acquired . | . . . Robots Built . | . . . Authchips . | . . . Time . | . . . Total Robot Build Rating . | . . . Part Schematics Acquired . | . . . Parts Built . | . . . Authchips . | . . . Time . | . . . Total Part Build Rating . | . . . Parts Repaired . | . . . Time . | . . . Parts Recycled . | . . . Recycled Matter . | . . . Retrieved Matter . | . . . Retrieved Components 3 | . . 3 Parts Scanalyzed . | . . . Part Schematics Acquired . | . . . Parts Damaged . | . . . Bothacking | -11 -10 -9 ------------ Run | Yrd Mat Mat Used RIF Installer . | . . . Robots Hacked . | . . . Non-combat . | . . . Combat . | . . . Robot Hacks Applied . | . . . Relay Couplers Released . | . . . Fabnet Peak Effective % . | . . . Robots Rewired . | . . . Allies Hacked . | . . . Hacks Repelled . | . . . Allies | -11 -10 -9 -------- Run | Yrd Mat Mat Total Allies . | . . . Largest Group . | . . . Highest-Rated Group . | . . . Highest-Rated Ally . | . . . Total Orders . | . . . Ally Attacks . | . . . Total Damage . | . . . Kills . | . . . Allies Corrupted . | . . . Allies Melted . | . . . Intel | -11 -10 -9 ------- Run | Yrd Mat Mat Robot Analysis Total . | . . . Derelict Logs Recovered . | . . . Drone Launches . | . . . Drone Recoveries . | . . . Exploration | -11 -10 -9 ------------- Run | Yrd Mat Mat Turns Passed 635 | 57 163 415 Spaces Moved 475 | 46 153 276 Core 7 | 7 . . Treads . | . . . Legs . | . . . Wheels 468 | 39 153 276 Hover . | . . . Flight . | . . . Fastest Speed 50 | 50 100 100 Average Speed 106 | 92 100 111 Slowest Speed 145 | 100 100 145 Overloaded Moves . | . . . Propulsion Burnouts . | . . . Robots Hopped . | . . . Cave-ins Triggered . | . . . Exploration Rate (%) 17 | 3 31 17 Regions Visited 2 Branch Regions . Pre-discovered Areas . | . . . Known Exits Taken . | . . . Unknown Exits Taken 2 | 1 1 . Scrap Searched . | . . . Spaces Dug 1 | . . 1 Terrain Destroyed 11 | . . 11 Melee . | . . . Projectile 1 | . . 1 AOE 10 | . . 10 Terrain Rammed . | . . . Walls Destroyed . | . . . Machines Disabled . | . . . Actions | -11 -10 -9 --------- Run | Yrd Mat Mat Total 551 | 60 159 332 Wait 7 | 2 . 5 Move 473 | 45 152 276 Hop . | . . . Pick Up 21 | 7 4 10 Fast Attach . | . . . Attach 12 | 6 1 5 Detach 1 | . . 1 Swap 5 | . . 5 Drop 2 | . . 2 Fire 30 | . 2 28 Melee . | . . . Ram . | . . . Kick . | . . . Crush . | . . . Escape Stasis . | . . . Rewire . | . . . Trap . | . . . Miscellaneous . | . . . Route ------- -11/Scrapyard -10/Materials (discovered 3 exits: *Mat x2 / [*Min]) -9/Materials History --------- Turn | Location | Event 2 | -11/Scrapyard | Met Revision 17 14 | -11/Scrapyard | Discovered new exit (range 16) 58 | -11/Scrapyard | Entered Materials 120 | -10/Materials | Discovered new exit (range 12) 137 | -10/Materials | Discovered new exit (range 5) 178 | -10/Materials | Discovered new exit (range 12) 221 | -10/Materials | Entered another Materials area 221 | -9/Materials | Evolved 2 slots: Utility x2 300 | -9/Materials | Build established: Mutant 636 | -9/Materials | Self-destructed Last Messages --------------- 00566_ Critical hit (Burn: +37). 00566_ Critical hit (Destroy). 00566_ Assault Rifle destroyed. 00574_ Y-45 Defender destroyed. 00577_ Acquired 58 matter. 00586_ Acquired Hvy. Assault Rifle. 00592_ R-06 Scavenger collects Beam Rifle. 00600_ R-06 Scavenger destroyed. 00607_ Acquired 74 matter. 00612_ Acquired Com. Wheel. 00616_ R-06 Scavenger collects Tractor Beam. 00616_ K-01 Serf collects debris. 00617_ Acquired Ion Engine. 00618_ R-06 Scavenger collects Beam Rifle. 00620_ K-01 Serf collects debris. 00620_ Dropped Lgt. Ion Engine. 00621_ R-06 Scavenger collects Lgt. Ion Engine. 00623_ K-01 Serf collects debris. 00628_ R-06 Scavenger collects Lgt. Ion Engine. 00630_ W-16 Scout sends out distress signal. Map ----- +----------------------------------------------------+ | ? = ##### ############# | | ? %[ """ ##### ############# | | ????######## *% """ ###?## ##???????#### | | ????######### # """" ###### ########### | | ?????????### = "" ###### ########### | | ?????????## "" ""#### # # | | ?????????## """" Y"#### ##### # | | ?????????### """"" ""#### ##### # | | ??????????##!! ###### ##?## """"""" + | | ??????????##!! ###### ##?## """"""" # | | ??????????############# ######+##?## """"""" # | | ??????????############# r#/ ##?## """"""" # | | ???????????############ # ##?## """"""" # | | ???????????## T */+ + """ ##?############ | | ???????????## *# # """ ##?############ | | ???????????## # # """ ##???????????## | | ???????????## # % # ####?????????## | | ???????????############ ###+##+####?????????## | | ???????????############ w# ##?????????## | | ???????????## # a# """"" ##?????????## | | ???????????## # # """"" ##?????????## | | ???????????## # # """"" ##?????????## | | ???????????## + + ! ##??????????? | | ???????????## [ # # """" ##??????????? | | ???????????## ### # """"" ##????????????? | | ???????????## ###@# """"" ##????????????? | | ???????????## ### # ! ==##????????????? | | ???????????##############g## ########????????????? | | ???????????####### aa######## ????????????? | | ???????????????????????? #####??????????????????? | | ???????????????????????? ##?????????????????????? | | ???????????????????????? ##?????????????????????? | | ??????????????????????? ##?????????????????????? | | ???????????????????????"g ##?????????????????????? | | ???????????????????????" ##?????????????????????? | | ???????????????????????"k ???????????????????????? | | ?????????????????????? #??????????????????????? | | ??????????????????????#####??????????????????????? | | ?????????????????????? ###??????????????????????? | | ?????????????????????????????????????????????????? | | ?????????????????????????????????????????????????? | | ?????????????????????????????????????????????????? | | ?????????????????????????????????????????????????? | | ?????????????????????????????????????????????????? | | ?????????????????????????????????????????????????? | | ?????????????????????????????????????????????????? | | ?????????????????????????????????????????????????? | | ?????????????????????????????????????????????????? | | ?????????????????????????????????????????????????? | | ?????????????????????????????????????????????????? | +----------------------------------------------------+ Best States ------------- Heat Dissipation 28 Energy Generation 10 Energy Capacity 250 Matter Stores 300 Matter Capacity 300 Sight Range 16 Terrain Scan Density 10 Armor Coverage 225 Evasion (%) 40 Offensive Hacking 10 Item Schematics ----------------- None Robot Schematics ------------------ None Fabricated ------------ Nothing Alien Tech Used ----------------- None Achievements -------------- None Challenges ------------ None Game ------ Seed AntigravExoskeletonShielding Manual? 0 Play Time 00:13:01 Cumulative 15.5 hours Start 2024.04.28 @ 22:48:16 End 2024.05.03 @ 10:41:31 Sessions 4 Manual Loads 0 Difficulty Rogue Special Mode None Game No. 21 Rogue 21 Adventurer 0 Explorer 0 Win Type - Total 0 Types 0/0/0/0/0/0/0/0/0 Lore% 19 Gallery% 20 Achievement% 17 Wizard Run 0 Options --------- Layout 1 ASCII 0 Keyboard 0 Movement Mouse Keybinds 0 Fullscreen 0 Font 20/SmallcapsGlow Map View 50x35 Zoom Use 0% Tactical HUD 1 Map Filters NONE Filters NONE Steam 1 RUN: e15bf668-2ceb-4d47-b401-12cec6a48f3f